bitfinex/quotes_SOLUSD_20220117
["timestamp","ask_amount","ask_price","bid_price","bid_amount"]
[1642441937371,2.03177782,140.39,140.33,0.25]
[1642441937970,2.03177782,140.39,140.33,2.00619958]
[1642441938169,2.03177782,140.39,140.33,0.25]
[1642441938370,2.03177782,140.39,140.34,10.29]
[1642441938771,2.03177782,140.39,140.35,0.25]
[1642441938971,45.4251051,140.4,140.35,42.06709562]
[1642441939579,45.4251051,140.4,140.35,0.25]
[1642441940177,47.45688292,140.4,140.35,0.25]
[1642441940401,47.45688292,140.4,140.33,0.25]
[1642441940598,47.45688292,140.4,140.33,37.22446792]
[1642441940797,53.45688292,140.4,140.33,37.22446792]
[1642441940999,53.45688292,140.4,140.33,47.51446792]
[1642441947206,53.45688292,140.4,140.33,47.26446792]
[1642441949914,53.45688292,140.4,140.34,0.25]
[1642441951117,8.03177782,140.4,140.34,0.25]
[1642441952118,50.34344969,140.4,140.34,0.25]
[1642441956725,121.27344969,140.4,140.34,0.25]
[1642441957123,121.27344969,140.4,140.33,0.25]
[1642441958326,2.03177782,140.39,140.33,0.25]
[1642441960229,2.03177782,140.39,140.32,22.7244]
[1642441960436,0.25,140.38,140.3,1.95272664]
[1642441960628,71.18,140.38,140.3,1.95272664]
[1642441961230,38.65167324,140.37,140.3,1.95272664]
[1642441961429,44.21367324,140.37,140.3,1.95272664]
[1642441961629,0.25,140.36,140.27,3.71515679]
[1642441962429,71.18,140.36,140.27,3.71515679]
[1642441962631,81.8715,140.36,140.27,3.71515679]
[1642441962933,2.03177782,140.34,140.27,3.71515679]
[1642441963230,2.03177782,140.34,140.25,1.95272664]
[1642441963430,0.25,140.33,140.25,1.95272664]
[1642441964230,70.93,140.32,140.26,0.25]
[1642441964630,0.25,140.31,140.26,0.25]
[1642441965835,0.25,140.32,140.26,0.25]
[1642441966234,51.54067003,140.34,140.26,0.25]
[1642441966854,2.03177782,140.34,140.26,0.25]
[1642441967256,25.78967782,140.35,140.26,2.20272664]
[1642441967658,25.78967782,140.35,140.26,14.24892622]
[1642441967857,2.03177782,140.35,140.26,14.50892622]
[1642441968058,2.03177782,140.35,140.26,14.25892622]
[1642441968356,2.03177782,140.35,140.26,20.25892622]
[1642441968756,2.03177782,140.35,140.26,30.68832622]
[1642441968955,2.03177782,140.35,140.26,12.24272664]
[1642441969156,36.62367103,140.34,140.26,12.24272664]
[1642441969455,36.87367103,140.34,140.27,1.95272664]
[1642441969655,70.93,140.33,140.27,1.95272664]
[1642441969859,0.25,140.32,140.27,1.95272664]
[1642441970658,0.25,140.32,140.25,37.59237043]
[1642441971557,10.9439,140.32,140.25,37.59237043]
[1642441971757,37.28724375,140.31,140.25,37.59237043]
[1642441972356,0.25,140.3,140.24,1.95272664]
[1642441972556,71.18,140.3,140.24,1.95272664]
[1642441973158,71.18,140.3,140.23,1.95272664]
[1642441973361,71.18,140.3,140.23,40.32739584]
[1642441973558,77.18,140.3,140.23,40.32739584]
[1642441974365,79.21177782,140.3,140.23,38.3746692]
[1642441974568,89.90717782,140.3,140.23,38.3746692]
[1642441975267,89.90717782,140.3,140.25,0.0216857]
[1642441980282,89.90717782,140.3,140.23,38.39631957]
[1642441982081,89.90717782,140.3,140.23,0.02165037]
[1642441983483,8.28177782,140.3,140.23,0.02165037]
[1642441983685,8.03177782,140.3,140.23,0.27165037]
[1642441983882,2.03177782,140.3,140.23,0.27165037]
[1642441984782,45.80344967,140.31,140.23,2.22437701]
[1642441985181,0.25,140.3,140.23,2.22437701]
[1642441985380,0.25,140.3,140.25,0.0216857]
[1642441985583,45.80344967,140.31,140.25,0.0216857]
[1642441986083,0.25,140.3,140.25,35.37856085]
[1642441986286,45.80344967,140.31,140.25,35.62856085]
[1642441987183,116.73344967,140.31,140.25,0.2716857]
[1642441987384,133.42824967,140.31,140.25,0.0216857]
[1642441987884,128.0,140.29,140.15,16.11591244]
[1642441988285,35.40733581,140.28,140.17,34.93563401]
[1642441988483,35.40733581,140.28,140.18,4.01640093]
[1642441988786,81.6292,140.27,140.18,4.01640093]
[1642441988987,90.1142,140.27,140.18,4.01640093]
[1642441989186,0.25,140.26,140.18,4.01640093]
[1642441989384,12.29619958,140.26,140.18,4.01640093]
[1642441989583,1.75619958,140.25,140.15,9.84231337]
[1642441989784,0.25,140.24,140.15,4.01640093]
[1642441989982,43.64015925,140.24,140.15,41.99480814]
[1642441990183,70.93,140.23,140.15,41.99480814]
[1642441990383,10.9518,140.22,140.15,41.99480814]
[1642441990583,0.25,140.22,140.15,41.99480814]
[1642441991284,10.9517,140.22,140.15,41.99480814]
[1642441991483,38.13271679,140.21,140.13,0.79995442]
[1642441991689,38.38271679,140.21,140.13,0.79995442]
[1642441992384,38.38271679,140.21,140.14,49.06100162]
[1642441992586,10.7036,140.2,140.14,49.06100162]
[1642441992820,0.25,140.19,140.14,49.06100162]
[1642441994120,10.9521,140.22,140.14,49.06100162]
[1642441994720,35.10670084,140.21,140.14,49.06100162]
[1642441995120,0.25,140.2,140.14,49.06100162]
[1642442003228,0.25,140.2,140.13,0.79995442]
[1642442003428,0.25,140.2,140.13,1.04995442]
[1642442004131,0.25,140.2,140.13,42.78706257]
[1642442008651,81.8832,140.2,140.13,42.78706257]
[1642442008949,81.8832,140.2,140.13,0.79995442]
[1642442009151,81.8832,140.2,140.13,5.442e-05]
[1642442009152,92.1732,140.2,140.13,5.442e-05]
[1642442009350,93.92939958,140.2,140.12,4.01640093]
[1642442009550,101.38000124,140.2,140.12,4.01640093]
[1642442009750,106.74300124,140.2,140.12,4.01640093]
[1642442009949,134.0,140.19,140.08,5.82591244]
[1642442010154,10.7094,140.16,140.08,5.82591244]
[1642442010366,0.25,140.15,140.08,5.82591244]
[1642442010550,0.25,140.15,140.04,22.7025]
[1642442010951,43.44274708,140.15,140.05,37.47490801]
[1642442011353,70.93,140.14,140.05,37.47490801]
[1642442011582,45.79107908,140.11,140.05,37.47490801]
[1642442011781,0.25,140.1,140.05,37.47490801]
[1642442013585,70.93,140.14,140.05,37.47490801]
[1642442013785,0.25,140.13,140.06,0.25]
[1642442014584,10.9589,140.13,140.06,0.25]
[1642442014785,55.5878386,140.13,140.06,0.25]
[1642442014985,61.5878386,140.13,140.06,0.25]
[1642442016684,16.9589,140.13,140.06,0.25]
[1642442018186,60.78953648,140.13,140.05,37.47490801]
[1642442018990,54.78953648,140.13,140.05,37.47490801]
[1642442019187,54.78953648,140.13,140.03,24.312]
[1642442019188,60.69953648,140.13,140.03,24.312]
[1642442019790,60.44953648,140.13,140.04,0.25]
[1642442020189,60.44953648,140.13,140.04,39.0742144]
[1642442020390,54.53953648,140.13,140.04,39.0742144]
[1642442020789,70.93,140.12,140.04,39.0742144]
[1642442020991,10.7111,140.1,140.04,39.0742144]
[1642442021292,0.25,140.09,140.04,39.0742144]
[1642442022490,0.25,140.11,140.04,39.0742144]
[1642442023494,171.99175827,140.14,140.04,39.0742144]
[1642442024695,11.96034698,140.16,140.04,39.0742144]
[1642442024897,82.89034698,140.16,140.05,24.5093]
[1642442025497,1.67034698,140.16,140.06,10.29]
[1642442025798,10.7074,140.15,140.07,38.00248391]
[1642442026195,1.67034698,140.16,140.07,38.00248391]
[1642442026395,22.9448,140.2,140.07,78.35928391]
[1642442026597,10.29,140.22,140.07,78.35928391]
[1642442026798,16.38736616,140.24,140.08,72.68619958]
[1642442027000,6.09736616,140.24,140.09,10.29]
[1642442027198,6.09736616,140.24,140.1,62.11854397]
[1642442027399,6.09736616,140.24,140.11,10.54]
[1642442027598,12.09736616,140.24,140.11,10.54]
[1642442027798,12.09736616,140.24,140.11,25.20016949]
[1642442028099,12.09736616,140.24,140.12,1.75619958]
[1642442028301,49.50456433,140.24,140.13,60.18858145]
[1642442028500,60.20466433,140.24,140.13,70.88818145]
[1642442028700,60.20466433,140.24,140.13,76.88818145]
[1642442028899,60.20466433,140.24,140.13,66.18858145]
[1642442029099,0.25,140.23,140.13,66.18858145]
[1642442030201,6.0,140.24,140.13,66.18858145]
[1642442030400,70.93,140.25,140.13,66.18858145]
[1642442031201,39.75466604,140.24,140.13,66.18858145]
[1642442031405,50.45516604,140.24,140.13,66.18858145]
[1642442032201,0.25,140.23,140.13,60.18858145]
[1642442032602,0.25,140.23,140.13,59.93858145]
[1642442032802,10.7033,140.2,140.13,49.64858145]
[1642442033003,49.15178523,140.19,140.13,49.64858145]
[1642442033203,49.40178523,140.19,140.13,49.64858145]
[1642442033406,0.25,140.18,140.13,49.64858145]
[1642442034502,10.9553,140.18,140.13,49.64858145]
[1642442034902,10.9553,140.18,140.1,33.1182]
[1642442035103,16.8543,140.18,140.1,22.8282]
[1642442035403,16.8543,140.18,140.08,34.3338]
[1642442035603,10.9553,140.18,140.08,24.0438]
[1642442036006,10.9553,140.18,140.09,42.10794076]
[1642442036403,10.9553,140.18,140.1,0.25]
[1642442036803,10.7053,140.18,140.1,0.25]
[1642442037102,1.30395254,140.21,140.1,2.00619958]
[1642442037303,0.25,140.2,140.11,10.29]
[1642442037702,0.25,140.2,140.12,0.25]
[1642442037902,0.25,140.2,140.12,37.37003257]
[1642442038105,0.25,140.2,140.12,45.83203257]
[1642442038305,0.25,140.2,140.12,56.53353257]
[1642442038806,45.9647,140.25,140.13,1.75619958]
[1642442038807,10.29,140.25,140.13,1.75619958]
[1642442039007,37.00293422,140.26,140.14,10.29]
[1642442039207,37.00293422,140.26,140.15,46.99249514]
[1642442039407,113.93293422,140.26,140.15,57.28249514]
[1642442039607,113.93293422,140.26,140.16,0.25]
[1642442039808,124.63153422,140.26,140.16,10.9475]
[1642442040009,0.25,140.25,140.16,0.25]
[1642442040412,0.25,140.25,140.13,34.6944]
[1642442040809,0.25,140.25,140.14,0.25]
[1642442041012,0.25,140.25,140.13,34.6944]
[1642442041210,0.25,140.25,140.14,0.25]
[1642442041510,10.7007,140.23,140.14,47.85487546]
[1642442041709,0.25,140.22,140.13,24.4044]
[1642442042510,10.7027,140.21,140.13,24.4044]
[1642442042710,43.09041645,140.2,140.13,59.34055526]
[1642442042911,43.34041645,140.2,140.13,59.34055526]
[1642442043310,43.34041645,140.2,140.14,0.25]
[1642442044610,54.04351645,140.2,140.14,0.25]
[1642442044811,54.04351645,140.2,140.11,43.8963]
[1642442045011,54.04351645,140.2,140.11,22.9041]
[1642442045210,60.04351645,140.2,140.11,22.9041]
[1642442045640,60.04351645,140.2,140.09,24.3661]
[1642442045838,60.04351645,140.2,140.1,37.38732618]
[1642442047138,70.93,140.19,140.1,37.38732618]
[1642442047440,10.7053,140.17,140.1,37.38732618]
[1642442047641,0.25,140.16,140.1,37.13732618]
[1642442048441,10.7053,140.17,140.11,0.25]
[1642442049543,81.6343,140.19,140.11,0.25]
[1642442049744,0.25,140.18,140.11,2.00619958]
[1642442049947,43.09041645,140.2,140.11,12.29619958]
[1642442050943,59.79361645,140.2,140.11,12.29619958]
[1642442051246,0.25,140.19,140.11,12.29619958]
[1642442052344,0.25,140.19,140.11,22.99889958]
[1642442053146,10.9538,140.19,140.11,12.04619958]
[1642442053349,70.93,140.18,140.09,30.3661]
[1642442053751,0.25,140.17,140.09,30.3661]
[1642442054150,0.25,140.17,140.1,37.72212176]
[1642442054549,10.706,140.16,140.11,0.25]
[1642442054749,40.29635681,140.15,140.11,0.25]
[1642442055151,10.706,140.16,140.11,0.25]
[1642442056162,60.35596121,140.16,140.11,0.25]
[1642442057953,60.35596121,140.16,140.09,24.3661]
[1642442058155,10.957,140.15,140.09,24.3661]
[1642442058554,10.957,140.15,140.07,10.29]
[1642442058954,10.957,140.15,140.07,50.62106923]
[1642442059554,10.957,140.15,140.07,10.29]
[1642442059955,70.93,140.14,140.07,10.29]
[1642442060154,10.7092,140.12,140.06,22.636]
[1642442060356,0.25,140.11,140.04,23.57902941]
[1642442060560,38.37488116,140.11,140.04,23.57902941]
[1642442060757,38.37488116,140.11,140.04,12.04619958]
[1642442061361,55.08488116,140.11,140.04,10.29]
[1642442061558,55.08488116,140.11,140.02,1.75619958]
[1642442061761,55.08488116,140.11,140.01,59.6319]
[1642442062359,55.08488116,140.11,140.02,38.41512602]
[1642442062759,55.08488116,140.11,140.03,0.25]
[1642442064267,55.08488116,140.11,140.02,38.41512602]
[1642442066365,55.08488116,140.11,140.03,0.25]
[1642442066565,16.96,140.11,140.03,0.25]
[1642442066965,6.0,140.11,140.03,0.25]
[1642442067165,24.7326,140.12,140.03,0.25]
[1642442067765,56.20786835,140.13,140.04,10.29]
[1642442068165,10.7087,140.13,140.05,0.25]
[1642442069168,51.68703123,140.13,140.04,25.07008524]
[1642442069568,51.68703123,140.13,140.05,0.25]
[1642442070383,0.25,140.12,140.05,0.25]
[1642442071801,0.25,140.12,140.05,10.9576]
[1642442072502,0.25,140.13,140.05,10.9576]
[1642442073302,10.9585,140.13,140.05,0.25]
[1642442074809,10.9585,140.13,140.04,10.29]
[1642442075008,10.7116,140.09,140.02,38.41512602]
[1642442075206,111.73536156,140.08,140.02,38.41512602]
[1642442075406,0.25,140.08,140.02,38.41512602]
[1642442075707,95.6762,140.11,140.02,38.41512602]
[1642442075907,0.25,140.1,140.02,38.41512602]
[1642442076306,0.25,140.1,140.03,0.25]
[1642442076508,10.9612,140.1,140.03,0.25]
[1642442077110,0.25,140.1,140.03,0.25]
[1642442078410,0.25,140.12,140.03,10.54]
[1642442078611,0.25,140.13,140.03,10.54]
[1642442078811,95.0445,140.15,140.03,10.54]
[1642442079210,136.54833318,140.15,140.03,10.54]
[1642442079614,147.25523318,140.15,140.06,10.7063]
[1642442079811,153.25523318,140.15,140.07,46.15907612]
[1642442080213,0.25,140.14,140.07,46.15907612]
[1642442081512,0.25,140.14,140.07,56.86517612]
[1642442082219,0.25,140.14,140.07,46.15907612]
[1642442083115,71.18,140.14,140.07,46.15907612]
[1642442084017,81.8876,140.14,140.07,46.15907612]
[1642442085417,87.8876,140.14,140.07,46.15907612]
[1642442088418,77.18,140.14,140.07,46.15907612]
[1642442091125,77.18,140.14,140.06,10.7068]
[1642442091320,87.8878,140.14,140.04,10.708]
[1642442091522,87.8878,140.14,140.04,20.998]
[1642442091822,87.8878,140.14,140.05,0.25]
[1642442092120,87.8878,140.14,140.05,40.55650032]
[1642442093522,87.8878,140.14,140.05,51.26410032]
[1642442095326,87.8878,140.14,140.05,57.26410032]
[1642442095524,87.8878,140.14,140.05,51.26410032]
[1642442096123,16.9578,140.14,140.05,51.26410032]
[1642442096324,10.9578,140.14,140.05,51.52410032]
[1642442096525,10.9578,140.14,140.05,51.27410032]
[1642442096725,10.9578,140.14,140.05,61.56410032]
[1642442097862,10.9578,140.14,140.06,0.25]
[1642442098027,10.9578,140.14,140.06,10.9569]
[1642442099632,10.9578,140.14,140.06,0.25]
[1642442099830,16.9578,140.14,140.06,0.25]
[1642442100031,10.7102,140.11,140.05,40.30650032]
[1642442100232,70.93,140.09,140.04,23.5828]
[1642442101934,70.93,140.09,140.03,58.21405181]
[1642442102136,0.25,140.08,140.01,14.36257434]
[1642442102539,10.9624,140.08,140.01,4.07257434]
[1642442102935,70.93,140.07,139.99,4.07257434]
[1642442103237,70.93,140.07,139.99,40.83888497]
[1642442103434,0.25,140.06,139.99,4.07257434]
[1642442104035,10.9652,140.06,139.96,16.11591244]
[1642442104238,10.9652,140.06,139.96,16.29]
[1642442104438,44.48386545,140.05,139.96,10.29]
[1642442104637,70.93,140.04,139.96,10.29]
[1642442104840,79.098,140.04,139.96,10.29]
[1642442105038,79.098,140.04,139.94,4.07257434]
[1642442105364,89.8133,140.04,139.94,4.07257434]
[1642442105662,81.6453,140.04,139.95,44.28242447]
[1642442105862,10.7153,140.04,139.96,0.25]
[1642442106659,10.7153,140.04,139.96,10.9645]
[1642442106859,23.5991,140.06,139.96,10.9645]
[1642442107060,39.54428065,140.1,139.96,33.7501]
[1642442107258,95.75949765,140.09,139.96,33.7501]
[1642442107460,85.46949765,140.09,139.97,10.29]
[1642442107660,85.46949765,140.09,139.99,10.7122]
[1642442107960,10.7127,140.08,140.0,47.37722191]
[1642442108162,10.9627,140.08,140.0,47.37722191]
[1642442108365,10.7127,140.08,140.0,47.37722191]
[1642442108561,70.93,140.07,139.99,2.03694397]
[1642442109160,76.93,140.07,139.99,2.03694397]
[1642442109563,10.7147,140.05,139.96,2.03694397]
[1642442109763,42.0988981,140.04,139.96,2.03694397]
[1642442109963,70.93,140.03,139.96,2.03694397]
[1642442110364,0.25,140.02,139.96,2.03694397]
[1642442110564,0.25,140.02,139.95,2.03694397]
[1642442110766,10.9671,140.02,139.95,2.03694397]
[1642442110970,70.93,140.01,139.95,2.03694397]
[1642442111365,0.25,140.0,139.95,2.03694397]
[1642442111565,0.25,140.0,139.94,2.03694397]
[1642442112567,17.5954,140.0,139.93,2.03694397]
[1642442112769,70.93,139.99,139.93,2.03694397]
[1642442113169,0.25,139.98,139.93,2.03694397]
[1642442113369,45.50724613,139.98,139.93,2.03694397]
[1642442114170,70.93,139.97,139.93,2.03694397]
[1642442114369,0.25,139.96,139.93,2.03694397]
[1642442114569,6.06439994,139.95,139.92,2.03694397]
[1642442115172,0.25,139.94,139.92,2.03694397]
[1642442115769,6.06439994,139.93,139.92,2.03694397]
[1642442115969,6.06439994,139.93,139.89,8.1487018]
[1642442115970,48.0604584,139.93,139.91,2.03694397]
[1642442116173,6.06439994,139.93,139.91,2.03694397]
[1642442117173,108.27260549,139.97,139.91,2.03694397]
[1642442117372,0.25,139.96,139.9,2.03694397]
[1642442117578,0.25,139.96,139.9,2.28694397]
[1642442118474,0.25,139.96,139.92,2.03694397]
[1642442119274,114.27260549,139.97,139.92,2.03694397]
[1642442120374,0.25,139.96,139.92,2.03694397]
[1642442120577,0.25,139.96,139.93,2.03694397]
[1642442120778,6.06439994,139.95,139.93,2.03694397]
[1642442121679,6.06439994,139.95,139.92,2.03694397]
[1642442124108,6.06439994,139.95,139.93,46.34713331]
[1642442124308,3.03219997,139.95,139.93,46.34713331]
[1642442124507,23.3125,140.01,139.93,54.78513331]
[1642442124708,72.80471771,140.02,139.94,0.25]
[1642442125108,43.7827303,140.01,139.93,46.34713331]
[1642442125308,43.7827303,140.01,139.93,48.38407728]
[1642442125511,43.7827303,140.01,139.95,10.7151]
[1642442125709,0.25,140.0,139.95,10.7151]
[1642442125911,0.25,140.0,139.93,48.38407728]
[1642442126414,0.25,140.0,139.93,2.03694397]
[1642442126812,0.25,140.0,139.94,2.03694397]
[1642442128114,0.25,140.0,139.93,2.03694397]
[1642442128516,10.9684,140.0,139.93,2.03694397]
[1642442128918,70.93,139.99,139.93,2.03694397]
[1642442129315,0.25,139.98,139.93,2.03694397]
[1642442129515,10.9716,139.98,139.93,2.03694397]
[1642442130115,10.9716,139.98,139.91,2.03694397]
[1642442131631,134.0,139.97,139.89,4.07639922]
[1642442131827,0.25,139.96,139.89,4.07639922]
[1642442132026,10.7262,139.94,139.87,4.07257434]
[1642442132224,28.9022,139.94,139.87,4.07257434]
[1642442132424,0.25,139.93,139.87,4.07257434]
[1642442132624,49.28293942,139.93,139.87,4.07257434]
[1642442132825,127.0,139.92,139.85,5.82591244]
[1642442133025,149.77499958,139.92,139.85,5.82591244]
[1642442133225,0.25,139.91,139.85,5.82591244]
[1642442133825,48.53021187,139.9,139.85,5.82591244]
[1642442134226,0.25,139.89,139.85,5.82591244]
[1642442134624,35.7544,139.93,139.84,44.22479348]
[1642442134625,10.29,139.94,139.84,44.22479348]
[1642442134826,10.29,139.94,139.85,24.8082]
[1642442135026,10.29,139.98,139.85,24.8082]
[1642442135424,10.29,139.98,139.85,24.5582]
[1642442135425,40.96934844,139.97,139.85,24.5582]
[1642442135628,65.29934844,139.97,139.85,24.5582]
[1642442135825,71.29934844,139.97,139.85,24.5582]
[1642442136026,71.29934844,139.97,139.84,44.22479348]
[1642442136227,21.2614,139.96,139.84,44.22479348]
[1642442136625,23.01759958,139.96,139.84,44.22479348]
[1642442138626,21.2614,139.96,139.84,44.22479348]
[1642442139529,36.40761418,139.93,139.84,54.94889348]
[1642442139728,118.06161418,139.93,139.84,54.94889348]
[1642442139928,0.25,139.92,139.84,54.94889348]
[1642442140329,6.0,139.93,139.85,0.25]
[1642442140529,6.0,139.93,139.84,44.22479348]
[1642442140728,94.9219,139.95,139.85,10.7227]
[1642442140931,16.7237,139.93,139.84,44.22479348]
[1642442141128,10.7237,139.93,139.84,44.22479348]
[1642442141331,113.84051101,139.92,139.84,44.22479348]
[1642442141730,0.25,139.91,139.83,10.29]
[1642442142130,12.73159958,139.91,139.78,5.82591244]
[1642442142331,12.73159958,139.91,139.78,39.35931244]
[1642442142332,22.8399,139.9,139.78,39.35931244]
[1642442142857,46.81220981,139.89,139.79,43.43502539]
[1642442143432,10.7304,139.87,139.79,43.43502539]
[1642442143731,45.72171552,139.86,139.79,43.43502539]
[1642442143934,45.97171552,139.86,139.79,43.43502539]
[1642442144337,45.97171552,139.86,139.78,23.2434]
[1642442144537,45.97171552,139.86,139.75,21.0204]
[1642442144734,45.97171552,139.86,139.75,45.7822]
[1642442145234,45.97171552,139.86,139.76,45.31023427]
[1642442145634,56.70111552,139.86,139.76,45.31023427]
[1642442146035,56.70111552,139.86,139.76,56.04043427]
[1642442146237,56.70111552,139.86,139.77,0.25]
[1642442146440,127.63111552,139.86,139.77,0.25]
[1642442147139,56.70111552,139.86,139.77,0.25]
[1642442147337,10.7294,139.86,139.77,0.25]
[1642442148236,53.70855796,139.86,139.77,0.25]
[1642442148737,0.25,139.85,139.77,10.9793]
[1642442149939,53.70855796,139.86,139.77,35.3192]
[1642442150764,10.7294,139.86,139.77,41.3192]
[1642442150965,10.7281,139.88,139.77,41.3192]
[1642442151367,10.7281,139.88,139.78,10.29]
[1642442151567,10.7281,139.88,139.79,10.728]
[1642442151767,52.40981711,139.88,139.8,48.14551463]
[1642442152570,123.33981711,139.88,139.8,48.14551463]
[1642442152768,0.25,139.87,139.8,48.14551463]
[1642442152968,47.48921077,139.85,139.8,48.14551463]
[1642442153370,0.25,139.84,139.8,48.14551463]
[1642442153769,47.48921077,139.85,139.79,23.8802]
[1642442154772,47.48921077,139.85,139.79,69.37476856]
[1642442155175,0.25,139.84,139.79,23.8802]
[1642442157676,10.981,139.84,139.79,23.8802]
[1642442158275,0.25,139.84,139.79,23.8802]
[1642442159476,0.25,139.84,139.79,23.84028]
[1642442160475,71.18,139.84,139.79,23.84028]
[1642442161078,0.25,139.84,139.79,23.84028]
[1642442161480,0.25,139.84,139.79,62.40509361]
[1642442162680,0.25,139.84,139.79,73.13289361]
[1642442163379,0.25,139.84,139.79,34.56808]
[1642442164482,0.25,139.84,139.79,69.94257198]
[1642442165282,0.25,139.84,139.79,34.56808]
[1642442165984,47.48921077,139.85,139.79,34.56808]
[1642442167785,0.25,139.84,139.79,34.56808]
[1642442168187,71.18,139.84,139.79,23.84028]
[1642442168386,71.18,139.84,139.76,10.29]
[1642442169114,71.18,139.84,139.76,49.11784957]
[1642442169586,71.18,139.84,139.76,59.84794957]
[1642442170491,71.18,139.84,139.76,38.82784957]
[1642442171690,81.9109,139.84,139.76,38.82784957]
[1642442172290,71.18,139.84,139.76,38.82784957]
[1642442172691,71.18,139.84,139.76,49.55744957]
[1642442172890,71.18,139.84,139.76,38.82784957]
[1642442173391,77.18,139.84,139.76,44.82784957]
[1642442173590,77.18,139.84,139.76,38.82784957]
[1642442173791,77.18,139.84,139.76,49.55804957]
[1642442174189,71.18,139.84,139.76,49.55804957]
[1642442174391,76.93,139.84,139.76,49.55804957]
[1642442174596,47.48921077,139.85,139.76,49.55804957]
[1642442174793,47.48921077,139.85,139.77,0.25]
[1642442174991,47.48921077,139.85,139.78,10.7285]
[1642442175192,47.48921077,139.85,139.76,44.82784957]
[1642442175397,58.21951077,139.85,139.76,38.82784957]
[1642442175893,0.25,139.84,139.76,44.82784957]
[1642442176092,0.25,139.84,139.76,55.55794957]
[1642442176296,0.25,139.84,139.77,0.25]
[1642442176695,0.25,139.84,139.76,44.82784957]
[1642442176894,70.93,139.89,139.77,8.295]
[1642442177194,6.0,139.87,139.78,34.7524]
[1642442177594,6.0,139.87,139.79,46.40315704]
[1642442177995,45.22975174,139.89,139.79,46.40315704]
[1642442178199,0.25,139.88,139.81,10.7259]
[1642442178394,0.25,139.88,139.82,0.25]
[1642442178594,30.1901926,139.92,139.82,23.0311]
[1642442178595,6.0,139.89,139.82,23.0311]
[1642442178996,57.7233,139.92,139.82,23.0311]
[1642442179194,37.29507582,139.91,139.83,40.43660329]
[1642442179395,7.45566358,139.93,139.83,51.16160329]
[1642442179794,7.45566358,139.93,139.84,0.25]
[1642442180195,21.0135,139.94,139.84,0.25]
[1642442180397,46.44490811,139.94,139.85,10.7228]
[1642442180598,46.44490811,139.94,139.86,48.53785714]
[1642442180798,24.3146,139.97,139.86,48.78785714]
[1642442180996,10.722,139.96,139.87,24.0331]
[1642442181197,24.3146,139.97,139.87,24.0331]
[1642442181398,24.3146,139.97,139.87,31.3831]
[1642442181600,24.3146,139.97,139.88,10.7211]
[1642442181799,45.44080254,139.96,139.89,35.20106487]
[1642442181997,70.93,139.95,139.89,35.20106487]
[1642442182297,72.68619958,139.95,139.85,10.29]
[1642442182697,1.75619958,139.94,139.85,10.29]
[1642442182901,2.00619958,139.94,139.85,10.29]
[1642442183301,44.06946183,139.93,139.85,10.29]
[1642442183698,0.25,139.92,139.85,10.29]
[1642442183900,81.9046,139.92,139.85,10.29]
[1642442184121,83.66079958,139.92,139.82,34.7182]
[1642442184320,1.75619958,139.91,139.82,34.7182]
[1642442184722,0.25,139.9,139.82,34.7182]
[1642442184921,40.79091281,139.9,139.82,82.52820026]
[1642442185523,10.7268,139.89,139.82,10.29]
[1642442185925,0.25,139.88,139.82,10.29]
[1642442186122,40.79091281,139.9,139.82,10.29]
[1642442186322,40.79091281,139.9,139.81,22.7949]
[1642442186523,70.93,139.89,139.81,67.90699173]
[1642442186723,70.93,139.89,139.81,45.11209173]
[1642442186923,10.7295,139.87,139.81,45.11209173]
[1642442187323,0.25,139.86,139.81,45.11209173]
[1642442188724,0.25,139.88,139.81,45.11209173]
[1642442190524,0.25,139.88,139.81,55.83839173]
[1642442192532,10.9777,139.88,139.81,45.11209173]
[1642442194435,70.93,139.87,139.81,45.11209173]
[1642442194633,46.85642465,139.86,139.81,45.11209173]
[1642442194833,47.10642465,139.86,139.81,45.11209173]